fUST/lending_fUST_20250901
["ID","MTS","AMOUNT","RATE_DAILY","PERIOD"]
[382556164,1756666252745,-480.0,0.00017245,2]
[382556165,1756666252754,-480.0,0.00017245,2]
[382556167,1756666252764,-647.25,0.00017245,2]
[382556169,1756666252775,-480.0,0.00017245,2]
[382556171,1756666252785,-480.0,0.00017245,2]
[382556173,1756666252795,-480.0,0.00017245,2]
[382556175,1756666252804,-151.0,0.00017245,2]
[382556177,1756666252814,-151.0,0.00017245,2]
[382556179,1756666252823,-151.0,0.00017245,2]
[382556181,1756666252834,-506.84,0.00017245,2]
[382556183,1756666252844,-151.0,0.00017245,2]
[382556185,1756666252854,-300.99974728,0.00017245,2]
[382556187,1756666252863,-151.0,0.00017245,2]
[382556190,1756666252877,-480.0,0.00017245,2]
[382556191,1756666252886,-973.22,0.00017245,2]
[382556193,1756666252896,-480.0,0.00017245,2]
[382556195,1756666252905,-151.0,0.00017245,2]
[382556197,1756666252914,-1491.78,0.00017245,2]
[382556199,1756666252923,-545.46,0.00017245,2]
[382556201,1756666252932,-151.0,0.00017245,2]
[382556203,1756666252942,-480.0,0.00017245,2]
[382556205,1756666252951,-480.0,0.00017245,2]
[382556207,1756666252960,-1238.5,0.00017245,2]
[382556209,1756666252970,-480.0,0.00017245,2]
[382556211,1756666252979,-480.0,0.00017245,2]
[382556213,1756666252989,-480.0,0.00017245,2]
[382556215,1756666252998,-480.0,0.00017245,2]
[382556217,1756666253008,-705.72,0.00017245,2]
[382556219,1756666253017,-1167.0,0.00017245,2]
[382556222,1756666253027,-480.0,0.00017245,2]
[382556223,1756666253036,-480.0,0.00017245,2]
[382556225,1756666253046,-480.0,0.00017245,2]
[382556227,1756666253056,-480.0,0.00017245,2]
[382556229,1756666253066,-967.2,0.00017245,2]
[382556232,1756666253075,-1108.12,0.00017245,2]
[382556233,1756666253085,-480.0,0.00017245,2]
[382556235,1756666253095,-480.0,0.00017245,2]
[382556237,1756666253104,-151.0,0.00017245,2]
[382556239,1756666253114,-151.0,0.00017245,2]
[382556241,1756666253123,-151.0,0.00017245,2]
[382556243,1756666253133,-151.0,0.00017245,2]
[382556245,1756666253143,-808.37,0.00017245,2]
[382556248,1756666253153,-480.0,0.00017245,2]
[382556250,1756666253162,-975.4,0.00017245,2]
[382556252,1756666253172,-151.0,0.00017245,2]
[382556254,1756666253181,-802.68,0.00017245,2]
[382556256,1756666253191,-480.0,0.00017245,2]
[382556258,1756666253200,-480.0,0.00017245,2]
[382556260,1756666253209,-480.0,0.00017245,2]
[382556262,1756666253219,-833.43,0.00017245,2]
[382556264,1756666253230,-480.0,0.00017245,2]
[382556266,1756666253239,-480.0,0.00017245,2]
[382556268,1756666253249,-151.0,0.00017245,2]
[382556270,1756666253259,-151.0,0.00017245,2]
[382556272,1756666253268,-151.0,0.00017245,2]
[382556274,1756666253278,-480.0,0.00017245,2]
[382556276,1756666253288,-1173.67,0.00017245,2]
[382556278,1756666253297,-151.0,0.00017245,2]
[382556280,1756666253307,-480.0,0.00017245,2]
[382556282,1756666253316,-480.0,0.00017245,2]
[382556284,1756666253326,-480.0,0.00017245,2]
[382556286,1756666253335,-594.94,0.00017245,2]
[382556288,1756666253344,-480.0,0.00017245,2]
[382556290,1756666253354,-151.0,0.00017245,2]
[382556292,1756666253363,-585.18,0.00017245,2]
[382556294,1756666253373,-1175.72,0.00017245,2]
[382556296,1756666253383,-151.0,0.00017245,2]
[382556298,1756666253392,-491.59,0.00017245,2]
[382556300,1756666253401,-480.0,0.00017245,2]
[382556302,1756666253410,-1136.23,0.00017245,2]
[382556304,1756666253419,-480.0,0.00017245,2]
[382556306,1756666253429,-588.77,0.00017245,2]
[382556308,1756666253438,-555.64,0.00017245,2]
[382556310,1756666253447,-492.7,0.00017245,2]
[382556312,1756666253457,-480.0,0.00017245,2]
[382556314,1756666253466,-1081.02,0.00017245,2]
[382556316,1756666253475,-303.82237786,0.00017245,2]
[382556319,1756666253485,-151.0,0.00017245,2]
[382556321,1756666253498,-480.0,0.00017245,2]
[382556323,1756666253507,-480.0,0.00017245,2]
[382556325,1756666253517,-151.0,0.00017245,2]
[382556327,1756666253527,-151.0,0.00017245,2]
[382556329,1756666253536,-480.0,0.00017245,2]
[382556331,1756666253545,-333.91199684,0.00017245,2]
[382556333,1756666253560,-480.0,0.00017245,2]
[382556335,1756666253569,-480.0,0.00017245,2]
[382556337,1756666253578,-480.0,0.00017245,2]
[382556339,1756666253587,-481.87,0.00017245,2]
[382556341,1756666253599,-949.28,0.00017245,2]
[382556343,1756666253608,-480.0,0.00017245,2]
[382556345,1756666253617,-910.33,0.00017245,2]
[382556347,1756666253629,-480.0,0.00017245,2]
[382556349,1756666253638,-480.0,0.00017245,2]
[382556351,1756666253647,-720.83,0.00017245,2]
[382556353,1756666253657,-621.59548838,0.00017245,2]
[382556355,1756666253667,-151.55384,0.00017245,2]
[382556357,1756666253676,-934.55,0.00017245,2]
[382556359,1756666253686,-1040.38,0.00017245,2]
[382556361,1756666253695,-151.0,0.00017245,2]
[382556363,1756666253705,-480.0,0.00017245,2]
[382556364,1756666253714,-480.0,0.00017245,2]
[382556366,1756666253724,-480.0,0.00017245,2]
[382556368,1756666253735,-655.44,0.00017245,2]
[382556370,1756666253744,-151.0,0.00017245,2]
[382556372,1756666253754,-151.0,0.00017245,2]
[382556374,1756666253763,-151.0,0.00017245,2]
[382556376,1756666253773,-480.0,0.00017245,2]
[382556378,1756666253782,-480.0,0.00017245,2]
[382556380,1756666253791,-625.77,0.00017245,2]
[382556382,1756666253800,-2856.77,0.00017245,2]
[382556384,1756666253809,-1071.7,0.00017245,2]
[382556386,1756666253818,-480.0,0.00017245,2]
[382556387,1756666253827,-480.0,0.00017245,2]
[382556390,1756666253838,-167.076088,0.00017245,2]
[382556392,1756666253847,-971.21,0.00017245,2]
[382556393,1756666253856,-900.97,0.00017245,2]
[382556395,1756666253866,-480.0,0.00017245,2]
[382556397,1756666253876,-849.34,0.00017245,2]
[382556399,1756666253886,-211.109368,0.00017245,2]
[382556401,1756666253895,-211.109368,0.00017245,2]
[382556403,1756666253908,-211.109368,0.00017245,2]
[382556405,1756666253917,-211.109368,0.00017245,2]
[382556407,1756666253926,-1262.34,0.00017245,2]
[382556409,1756666253935,-391.12,0.00017245,2]
[382556411,1756666253945,-480.0,0.00017245,2]
[382556413,1756666253954,-480.0,0.00017245,2]
[382556415,1756666253963,-151.0,0.00017245,2]
[382556417,1756666253973,-151.0,0.00017245,2]
[382556419,1756666253982,-151.0,0.00017245,2]
[382556421,1756666253991,-151.0,0.00017245,2]
[382556422,1756666254001,-151.0,0.00017245,2]
[382556424,1756666254011,-1286.76,0.00017245,2]
[382556426,1756666254021,-151.0,0.00017245,2]
[382556428,1756666254032,-226.906472,0.00017245,2]
[382556430,1756666254041,-714.23,0.00017245,2]
[382556432,1756666254051,-480.0,0.00017245,2]
[382556434,1756666254060,-151.0,0.00017245,2]
[382556436,1756666254070,-480.0,0.00017245,2]
[382556438,1756666254079,-480.0,0.00017245,2]
[382556440,1756666254090,-584.28,0.00017245,2]
[382556442,1756666254099,-480.0,0.00017245,2]
[382556444,1756666254109,-151.0,0.00017245,2]
[382556446,1756666254118,-1167.02,0.00017245,2]
[382556448,1756666254128,-384.857097,0.00017245,2]
[382556450,1756666254137,-384.857097,0.00017245,2]
[382556452,1756666254146,-384.857097,0.00017245,2]
[382556454,1756666254156,-480.0,0.00017245,2]
[382556456,1756666254165,-384.857097,0.00017245,2]
[382556458,1756666254175,-1007.02,0.00017245,2]
[382556460,1756666254185,-900.71,0.00017245,2]
[382556462,1756666254195,-480.0,0.00017245,2]
[382556464,1756666254204,-480.0,0.00017245,2]
[382556466,1756666254213,-151.0,0.00017245,2]
[382556468,1756666254222,-164.34718,0.00017245,2]
[382556470,1756666254231,-1654.98,0.00017245,2]
[382556472,1756666254242,-151.0,0.00017245,2]
[382556474,1756666254251,-613.84,0.00017245,2]
[382556476,1756666254260,-480.0,0.00017245,2]
[382556478,1756666254270,-151.0,0.00017245,2]
[382556480,1756666254279,-480.0,0.00017245,2]
[382556482,1756666254290,-480.0,0.00017245,2]
[382556484,1756666254299,-794.31,0.00017245,2]
[382556486,1756666254308,-2126.74,0.00017245,2]
[382556488,1756666254318,-480.0,0.00017245,2]
[382556490,1756666254327,-538.74,0.00017245,2]
[382556492,1756666254336,-480.0,0.00017245,2]
[382556494,1756666254345,-535.58,0.00017245,2]
[382556496,1756666254355,-1731.2,0.00017245,2]
[382556498,1756666254365,-1172.05,0.00017245,2]
[382556500,1756666254374,-1082.72,0.00017245,2]
[382556502,1756666254384,-480.0,0.00017245,2]
[382556504,1756666254393,-409.74668676,0.00017245,2]
[382556506,1756666254402,-480.0,0.00017245,2]
[382556508,1756666254412,-480.0,0.00017245,2]
[382556510,1756666254421,-650.91,0.00017245,2]
[382556512,1756666254430,-480.0,0.00017245,2]
[382556514,1756666254439,-480.0,0.00017245,2]
[382556516,1756666254448,-480.0,0.00017245,2]
[382556518,1756666254457,-480.0,0.00017245,2]
[382556520,1756666254466,-656.44,0.00017245,2]
[382556522,1756666254475,-508.98,0.00017245,2]
[382556524,1756666254485,-560.88,0.00017245,2]
[382556526,1756666254494,-151.0,0.00017245,2]
[382556528,1756666254503,-480.0,0.00017245,2]
[382556530,1756666254512,-622.1,0.00017245,2]
[382556532,1756666254522,-200.0,0.00017245,3]
[382556533,1756666254531,-200.0,0.00017245,3]
[382556535,1756666254541,-663.15,0.00017245,2]
[382556537,1756666254552,-200.0,0.00017245,3]
[382556539,1756666254562,-200.0,0.00017245,3]
[382556541,1756666254571,-200.0,0.00017245,3]
[382556543,1756666254581,-480.0,0.00017245,2]
[382556545,1756666254590,-480.0,0.00017245,2]
[382556547,1756666254599,-480.0,0.00017245,2]
[382556549,1756666254608,-480.0,0.00017245,2]
[382556551,1756666254618,-480.0,0.00017245,2]
[382556553,1756666254629,-1346.99,0.00017245,2]
[382556555,1756666254638,-535.64,0.00017245,2]
[382556557,1756666254647,-1348.93,0.00017245,2]
[382556559,1756666254656,-480.0,0.00017245,2]
[382556561,1756666254666,-480.0,0.00017245,2]
[382556563,1756666254675,-480.0,0.00017245,2]
[382556565,1756666254685,-480.0,0.00017245,2]
[382556567,1756666254694,-480.0,0.00017245,2]
[382556569,1756666254704,-480.0,0.00017245,2]
[382556571,1756666254714,-649.4,0.00017245,2]
[382556573,1756666254723,-480.0,0.00017245,2]
[382556575,1756666254732,-540.89,0.00017245,2]
[382556577,1756666254740,-480.0,0.00017245,2]
[382556579,1756666254749,-569.15,0.00017245,2]
[382556581,1756666254758,-610.75,0.00017245,2]
[382556583,1756666254768,-480.0,0.00017245,2]
[382556585,1756666254777,-480.0,0.00017245,2]
[382556587,1756666254787,-480.0,0.00017245,2]
[382556589,1756666254797,-838.42,0.00017245,2]
[382556591,1756666254806,-480.0,0.00017245,2]
[382556593,1756666254815,-1261.57,0.00017245,2]
[382556595,1756666254825,-1045.13,0.00017245,2]
[382556597,1756666254835,-543.6,0.00017245,2]
[382556598,1756666254847,-578.50855936,0.00017245,2]
[382556600,1756666254856,-480.0,0.00017245,2]
[382556602,1756666254867,-480.0,0.00017245,2]
[382556604,1756666254878,-200.0,0.00017246,2]
[382556606,1756666254887,-151.0,0.00017247,2]
[382556608,1756666254897,-500.0,0.00017247,2]
[382556610,1756666254906,-245.0,0.00017247,2]
[382556612,1756666254915,-269.37089005,0.00017247,2]
[382556614,1756666254925,-1443.0,0.00017247,2]
[382556616,1756666254934,-151.0,0.00017247,2]
[382556618,1756666254943,-500.0,0.00017247,2]
[382556620,1756666254953,-500.0,0.00017247,2]
[382556622,1756666254962,-242.19928668,0.00017247,2]
[382556624,1756666254971,-500.0,0.00017247,2]
[382556626,1756666254981,-500.0,0.00017247,2]
[382556628,1756666254990,-151.0,0.00017247,2]
[382556630,1756666254999,-216.52043987,0.00017247,2]
[382556632,1756666255010,-250.385,0.0001725,2]
[382556634,1756666255019,-500.0,0.00017273,2]
[382556636,1756666255028,-500.0,0.00017273,2]
[382556638,1756666255038,-500.0,0.00017273,2]
[382556640,1756666255047,-500.44109157,0.00017273,2]
[382556641,1756666255056,-340.29691415,0.00017273,2]
[382556643,1756666255065,-500.75883026,0.00017273,2]
[382556645,1756666255075,-500.0,0.00017273,2]
[382556647,1756666255084,-500.0,0.00017273,2]
[382556649,1756666255093,-259.75959681,0.00017273,2]
[382556651,1756666255102,-500.0,0.00017273,2]
[382556653,1756666255112,-500.0,0.00017273,2]
[382556655,1756666255122,-500.0,0.00017273,2]
[382556657,1756666255131,-500.0,0.00017273,2]
[382556659,1756666255140,-500.0,0.00017273,2]
[382556661,1756666255150,-500.0,0.00017273,2]
[382556663,1756666255159,-463.65554289,0.00017273,2]
[382556665,1756666255168,-500.0,0.00017273,2]
[382556667,1756666255178,-500.0,0.00017273,2]
[382556669,1756666255187,-500.0,0.00017273,2]
[382556671,1756666255196,-500.0,0.00017273,2]
[382556673,1756666255206,-500.0,0.00017273,2]
[382556675,1756666255215,-500.0,0.00017273,2]
[382556677,1756666255224,-500.0,0.00017273,2]
[382556679,1756666255233,-500.0,0.00017273,2]
[382556681,1756666255242,-500.0,0.00017273,2]
[382556683,1756666255251,-1737.0,0.00017277,2]
[382556685,1756666255260,-151.0,0.000173,2]
[382556686,1756666255270,-151.0,0.000173,2]
[382556688,1756666255279,-151.0,0.000173,2]
[382556690,1756666255288,-151.0,0.000173,2]
[382556692,1756666255298,-184.400329,0.000173,2]
[382556694,1756666255307,-151.0,0.000173,2]
[382556696,1756666255316,-878.32164347,0.00017306,2]
[382556698,1756666255325,-11364.23969824,0.00017321,2]
[382556700,1756666255334,-151.0,0.00017321,2]
[382556702,1756666255343,-151.0,0.00017321,2]
[382556704,1756666255352,-155.599794,0.00017321,2]
[382556706,1756666255362,-151.0,0.00017321,2]
[382556708,1756666255371,-152.953308,0.00017321,2]
[382556710,1756666255380,-152.953308,0.00017321,2]
[382556712,1756666255389,-152.953308,0.00017321,2]
[382556714,1756666255399,-152.953308,0.00017321,2]
[382556716,1756666255408,-172.580756,0.00017321,2]
[382556717,1756666255418,-172.580756,0.00017321,2]
[382556719,1756666255427,-172.580756,0.00017321,2]
[382556721,1756666255436,-172.580756,0.00017321,2]
[382556723,1756666255446,-151.0,0.00017321,2]
[382556725,1756666255455,-151.0,0.00017321,2]
[382556727,1756666255465,-151.0,0.00017321,2]
[382556729,1756666255475,-151.0,0.00017321,2]
[382556731,1756666255484,-282.621089,0.00017321,2]
[382556733,1756666255494,-182.570074,0.00017321,2]
[382556735,1756666255503,-282.621089,0.00017321,2]
[382556737,1756666255513,-282.621089,0.00017321,2]
[382556739,1756666255523,-282.621089,0.00017321,2]
[382556741,1756666255532,-160.0,0.00017321,2]
[382556743,1756666255541,-417.15472785,0.00017321,2]
[382556745,1756666255551,-160.0,0.00017321,2]
[382556747,1756666255564,-217.4012883,0.00017321,2]
[382556749,1756666255573,-160.0,0.00017321,2]
[382556751,1756666255582,-160.0,0.00017321,2]
[382556753,1756666255591,-160.0,0.00017321,2]
[382556755,1756666255601,-232.78794292,0.00017321,2]
[382556757,1756666255610,-160.0,0.00017321,2]
[382556759,1756666255620,-845.95363151,0.00017321,2]
[382556761,1756666255630,-425.75173308,0.00017321,2]
[382556763,1756666255639,-160.0,0.00017321,2]
[382556765,1756666255649,-530.02580203,0.00017321,2]
[382556767,1756666255658,-160.0,0.00017321,2]
[382556769,1756666255668,-160.0,0.00017325,2]
[382556771,1756666255679,-160.0,0.00017325,2]
[382556772,1756666255688,-1737.0,0.0001733,2]
[382556774,1756666255697,-480.0,0.00017345,2]
[382556776,1756666255707,-652.18,0.00017345,2]
[382556778,1756666255716,-575.65,0.00017345,2]
[382556780,1756666255726,-480.0,0.00017345,2]
[382556782,1756666255735,-512.79,0.00017345,2]
[382556784,1756666255744,-984.67,0.00017345,2]
[382556786,1756666255754,-480.0,0.00017345,2]
[382556802,1756666255911,-480.0,0.00017345,2]
[382556804,1756666255921,-480.0,0.00017345,2]
[382556806,1756666255930,-480.0,0.00017345,2]
[382556808,1756666255941,-546.41,0.00017345,2]
[382556810,1756666255951,-1737.0,0.00017399,2]
[382556812,1756666255961,-151.0,0.000174,2]
[382556813,1756666255970,-151.0,0.00017419,2]
[382556815,1756666255980,-151.0,0.00017419,2]
[382556817,1756666255989,-151.0,0.00017419,2]
[382556819,1756666256000,-151.0,0.00017419,2]
[382556821,1756666256010,-151.0,0.00017419,2]
[382556823,1756666256019,-151.0,0.00017419,2]
[382556825,1756666256028,-151.0,0.00017419,2]
[382556827,1756666256038,-384.857097,0.00017419,2]
[382556829,1756666256047,-384.857097,0.00017419,2]
[382556831,1756666256057,-384.857097,0.00017419,2]
[382556833,1756666256066,-384.857097,0.00017419,2]
[382556835,1756666256077,-295.25533,0.00017419,2]
[382556837,1756666256087,-3604.803589,0.00017427,2]
[382556839,1756666256096,-151.0,0.00017427,2]
[382556841,1756666256105,-151.0,0.00017427,2]
[382556843,1756666256116,-151.0,0.00017427,2]
[382556845,1756666256125,-500.0,0.00017483,2]
[382556847,1756666256135,-769.73,0.00017483,2]
[382556849,1756666256144,-480.0,0.00017492,2]
[382556850,1756666256154,-480.0,0.00017492,2]
[382556852,1756666256163,-1029.23,0.00017492,2]
[382556854,1756666256173,-480.0,0.00017492,2]
[382556856,1756666256182,-1236.91,0.00017492,2]
[382556858,1756666256191,-1386.55,0.00017492,2]
[382556860,1756666256201,-151.0,0.000175,2]
[382556862,1756666256210,-151.0,0.000175,2]
[382556864,1756666256219,-979.62,0.00017516,2]
[382556866,1756666256229,-480.0,0.00017516,2]
[382556868,1756666256238,-480.0,0.00017516,2]
[382556870,1756666256247,-480.0,0.00017516,2]
[382556871,1756666256256,-480.0,0.00017516,2]
[382556873,1756666256266,-480.0,0.00017516,2]
[382556875,1756666256276,-480.0,0.00017516,2]
[382556877,1756666256284,-631.34,0.00017516,2]
[382556879,1756666256297,-480.0,0.00017516,2]
[382556881,1756666256306,-480.0,0.00017516,2]
[382556883,1756666256316,-480.0,0.00017516,2]
[382556885,1756666256325,-489.77,0.00017516,2]
[382556887,1756666256334,-529.29,0.00017516,2]
[382556889,1756666256344,-480.0,0.00017516,2]
[382556891,1756666256354,-729.43,0.00017516,2]
[382556893,1756666256363,-351.53,0.00017516,2]
[382556895,1756666256373,-480.0,0.00017516,2]
[382556897,1756666256381,-480.0,0.00017516,2]
[382556898,1756666256391,-739.99,0.00017516,2]
[382556900,1756666256400,-480.0,0.00017516,2]
[382556902,1756666256410,-480.0,0.00017516,2]
[382556904,1756666256419,-480.0,0.00017517,2]
[382556906,1756666256428,-480.0,0.00017517,2]
[382556908,1756666256437,-480.0,0.00017517,2]
[382556910,1756666256446,-1461.32,0.00017517,2]
[382556912,1756666256456,-810.48,0.00017517,2]
[382556914,1756666256465,-962.71,0.00017517,2]
[382556916,1756666256474,-480.0,0.00017517,2]
[382556917,1756666256483,-782.37,0.00017517,2]
[382556918,1756666256492,-480.0,0.00017517,2]
[382556919,1756666256501,-491.61,0.00017517,2]
[382556920,1756666256511,-480.0,0.00017517,2]
[382556921,1756666256520,-486.85,0.00017517,2]
[382556922,1756666256529,-151.123548,0.00017517,2]
[382556923,1756666256539,-151.0,0.00017517,2]
[382556924,1756666256548,-151.0,0.00017517,2]
[382556925,1756666256557,-290.506704,0.00017517,2]
[382556926,1756666256567,-603.14,0.00017517,2]
[382556927,1756666256576,-748.53,0.00017517,2]
[382556928,1756666256586,-480.0,0.00017517,2]
[382556929,1756666256595,-211.109368,0.00017517,2]
[382556930,1756666256604,-211.109368,0.00017517,2]
[382556931,1756666256614,-211.109368,0.00017517,2]
[382556932,1756666256624,-211.109368,0.00017517,2]
[382556933,1756666256633,-545.81296752,0.00017517,2]
[382556975,1756666257150,-480.0,0.00016695,2]
[382556978,1756666257160,-480.0,0.00016969,2]
[382556980,1756666257171,-480.0,0.00017243,2]
[382556982,1756666257181,-4184.53045234,0.00017245,2]
[382557086,1756666258207,-4216.66798049,0.00017245,2]
[382557088,1756666258216,-273.17703248,0.00017517,2]
[382557090,1756666258226,-1024.68,0.00017517,2]
[382557092,1756666258235,-588.16,0.00017517,2]
[382557094,1756666258244,-480.0,0.00017517,2]
[382557096,1756666258254,-742.86,0.00017517,2]
[382557098,1756666258263,-501.17,0.00017517,2]
[382557100,1756666258274,-724.98,0.00017517,2]
[382557102,1756666258283,-1030.41,0.00017517,2]
[382557104,1756666258292,-1001.0,0.00017517,2]
[382557106,1756666258301,-480.0,0.00017517,2]
[382557108,1756666258311,-480.0,0.00017517,2]
[382557110,1756666258320,-480.0,0.00017517,2]
[382557112,1756666258330,-480.0,0.00017517,2]
[382557114,1756666258340,-685.34,0.00017517,2]
[382557116,1756666258350,-493.84,0.00017517,2]
[382557118,1756666258359,-464.42992736,0.00017517,2]
[382557120,1756666258369,-505.24,0.00017517,2]
[382557122,1756666258378,-497.43,0.00017517,2]
[382557124,1756666258388,-994.57,0.00017517,2]
[382557126,1756666258397,-480.0,0.00017517,2]
[382557128,1756666258407,-480.0,0.00017517,2]
[382557130,1756666258416,-1779.89,0.00017517,2]
[382557132,1756666258426,-480.0,0.00017517,2]
[382557134,1756666258435,-836.52,0.00017517,2]
[382557136,1756666258444,-604.07,0.00017517,2]
[382557138,1756666258453,-869.39,0.00017517,2]
[382557139,1756666258462,-498.24,0.00017517,2]
[382557141,1756666258472,-480.0,0.00017517,2]
[382557143,1756666258481,-1012.37,0.00017517,2]
[382557145,1756666258490,-480.0,0.00017517,2]
[382557147,1756666258499,-1344.9,0.00017517,2]
[382557149,1756666258509,-1243.82,0.00017517,2]
[382557151,1756666258518,-985.25,0.00017517,2]
[382557153,1756666258527,-480.0,0.00017517,2]
[382557155,1756666258537,-480.0,0.00017517,2]
[382557157,1756666258546,-480.0,0.00017517,2]
[382557159,1756666258558,-587.47,0.00017517,2]
[382557161,1756666258567,-1022.72,0.00017517,2]
[382557163,1756666258576,-543.35,0.00017517,2]
[382557165,1756666258585,-480.0,0.00017517,2]
[382557167,1756666258594,-1031.31183364,0.00017517,2]
[382557170,1756666258608,-1031.19816636,0.00017517,2]
[382557172,1756666258617,-797.04,0.00017517,2]
[382557174,1756666258626,-480.0,0.00017517,2]
[382557176,1756666258636,-773.81,0.00017517,2]
[382557178,1756666258646,-1010.56,0.00017517,2]
[382557180,1756666258655,-480.0,0.00017517,2]
[382557181,1756666258664,-1061.73,0.00017517,2]
[382557184,1756666258673,-1897.83,0.00017517,2]
[382557185,1756666258683,-766.62,0.00017517,2]
[382557188,1756666258693,-725.16,0.00017517,2]
[382557189,1756666258703,-480.0,0.00017517,2]
[382557191,1756666258713,-480.0,0.00017517,2]
[382557194,1756666258722,-1173.59,0.00017517,2]
[382557196,1756666258732,-510.87,0.00017517,2]
[382557198,1756666258741,-480.0,0.00017517,2]
[382557200,1756666258751,-194.26412781,0.00017517,2]
[382557202,1756666258761,-618.82,0.00017517,2]
[382557221,1756666258932,-480.0,0.00017517,2]
[382557223,1756666258942,-151.0,0.00017518,2]
[382557225,1756666258951,-266.07364189,0.00017518,2]
[382557227,1756666258960,-804.06,0.00017518,2]
[382557229,1756666258969,-6013.89,0.00017518,2]
[382557231,1756666258979,-1563.83,0.00017518,2]
[382557233,1756666258991,-480.0,0.00017518,2]
[382557235,1756666259000,-1261.56,0.00017518,2]
[382557236,1756666259010,-868.94,0.00017518,2]
[382557238,1756666259020,-3097.15352318,0.00017518,2]
[382557241,1756666259035,-1897.21647682,0.00017518,2]
[382557243,1756666259044,-5041.24,0.00017518,2]
[382557245,1756666259053,-484.91,0.00017518,2]
[382557247,1756666259062,-639.98,0.00017518,2]
[382557249,1756666259072,-480.0,0.00017518,2]
[382557251,1756666259082,-1098.49,0.00017518,2]
[382557253,1756666259091,-480.0,0.00017519,2]
[382557255,1756666259100,-480.0,0.00017519,2]
[382557257,1756666259110,-480.0,0.00017519,2]
[382557258,1756666259119,-1029.14,0.00017519,2]
[382557259,1756666259128,-1040.21,0.00017519,2]
[382557260,1756666259138,-480.0,0.00017519,2]
[382557261,1756666259148,-480.0,0.00017519,2]
[382557262,1756666259157,-480.0,0.00017519,2]
[382557263,1756666259167,-480.0,0.00017519,2]
[382557264,1756666259176,-480.0,0.00017519,2]
[382557265,1756666259186,-480.0,0.00017519,2]
[382557266,1756666259195,-480.0,0.00017519,2]
[382557267,1756666259204,-480.0,0.00017519,2]
[382557268,1756666259214,-480.0,0.00017519,2]
[382557269,1756666259225,-480.0,0.00017519,2]
[382557270,1756666259236,-480.0,0.00017519,2]
[382557272,1756666259245,-773.18,0.00017519,2]
[382557274,1756666259255,-480.0,0.00017519,2]
[382557276,1756666259264,-338.68950928,0.00017519,2]
[382557278,1756666259275,-480.0,0.00017519,2]
[382557280,1756666259284,-480.0,0.00017519,2]
[382557282,1756666259294,-480.0,0.00017519,2]
[382557284,1756666259303,-480.0,0.00017519,2]
[382557286,1756666259313,-151.0,0.00017519,2]
[382557288,1756666259322,-480.0,0.00017519,2]
[382557291,1756666259332,-480.0,0.00017519,2]
[382557293,1756666259342,-480.0,0.00017519,2]
[382557295,1756666259352,-480.0,0.00017519,2]